[Event "Titled Tuesday Blitz June 13 Late 2023"]
[White "Aggelis, Nikolaos"]
[Black "Holt, Conrad"]
[WhiteFideId "4213220"]
[BlackFideId "2034387"]
[WhiteElo "2189"]
[BlackElo "2592"]
[Result "1/2-1/2"]
[Round "8"]
[TimeControl "180+2"]
[Date "2023.06.13"]
[WhiteClock "0:00:07"]
[BlackClock "0:00:10"]
[Board "45"]

1. c4 {[%clk 0:03:00]}  c6 {[%clk 0:02:57]} 2. d4 {[%clk 0:02:54]}  d5 {[%clk 0:02:57]} 3. cxd5 {[%clk 0:02:55]}  cxd5 {[%clk 0:02:57]} 4. Nf3 {[%clk 0:02:56]}  Nc6 {[%clk 0:02:58]} 5. Nc3 {[%clk 0:02:56]}  Nf6 {[%clk 0:02:58]} 6. Bf4 {[%clk 0:02:53]}  Nh5 {[%clk 0:02:59]} 7. Bg3 {[%clk 0:02:51]}  Nxg3 {[%clk 0:02:52]} 8. hxg3 {[%clk 0:02:52]}  e6 {[%clk 0:02:30]} 9. e3 {[%clk 0:02:52]}  Bd6 {[%clk 0:02:28]} 10. Bd3 {[%clk 0:02:52]}  f5 {[%clk 0:02:25]} 11. Nd2 {[%clk 0:02:02]}  Qg5 {[%clk 0:02:16]} 12. Qh5+ {[%clk 0:01:59]}  Qxh5 {[%clk 0:02:14]} 13. Rxh5 {[%clk 0:02:00]}  g6 {[%clk 0:02:13]} 14. Rh3 {[%clk 0:01:59]}  e5 {[%clk 0:01:50]} 15. Nxd5 {[%clk 0:01:45]}  f4 {[%clk 0:01:27]} 16. Bxg6+ {[%clk 0:01:20]}  Kf8 {[%clk 0:01:27]} 17. Rxh7 {[%clk 0:01:19]}  Rxh7 {[%clk 0:01:26]} 18. Bxh7 {[%clk 0:01:20]}  fxe3 {[%clk 0:01:26]} 19. fxe3 {[%clk 0:01:18]}  exd4 {[%clk 0:01:26]} 20. Kf2 {[%clk 0:01:09]}  Be6 {[%clk 0:01:19]} 21. Be4 {[%clk 0:01:03]}  dxe3+ {[%clk 0:01:17]} 22. Nxe3 {[%clk 0:01:02]}  Rd8 {[%clk 0:01:11]} 23. Nf3 {[%clk 0:00:56]}  Bc5 {[%clk 0:01:01]} 24. Rc1 {[%clk 0:00:48]}  Bb6 {[%clk 0:01:01]} 25. Bxc6 {[%clk 0:00:44]}  bxc6 {[%clk 0:01:01]} 26. Rxc6 {[%clk 0:00:45]}  Bxa2 {[%clk 0:00:59]} 27. Ke2 {[%clk 0:00:40]}  Re8 {[%clk 0:00:51]} 28. Rc3 {[%clk 0:00:37]}  Bf7 {[%clk 0:00:43]} 29. Nd2 {[%clk 0:00:34]}  Bh5+ {[%clk 0:00:39]} 30. Kf2 {[%clk 0:00:34]}  Bd4 {[%clk 0:00:36]} 31. Rb3 {[%clk 0:00:28]}  Bf7 {[%clk 0:00:31]} 32. Ra3 {[%clk 0:00:26]}  Rb8 {[%clk 0:00:22]} 33. Nf1 {[%clk 0:00:14]}  Rxb2+ {[%clk 0:00:19]} 34. Kg1 {[%clk 0:00:15]}  Re2 {[%clk 0:00:15]} 35. g4 {[%clk 0:00:13]}  Bc5 {[%clk 0:00:15]} 36. Rc3 {[%clk 0:00:12]}  Bb6 {[%clk 0:00:15]} 37. g5 {[%clk 0:00:11]}  a5 {[%clk 0:00:15]} 38. Kh2 {[%clk 0:00:11]}  a4 {[%clk 0:00:14]} 39. Kg3 {[%clk 0:00:11]}  Bd4 {[%clk 0:00:13]} 40. Rd3 {[%clk 0:00:11]}  Be5+ {[%clk 0:00:12]} 41. Kf3 {[%clk 0:00:11]}  Ra2 {[%clk 0:00:12]} 42. Ng4 {[%clk 0:00:08]}  Bb2 {[%clk 0:00:11]} 43. Nfe3 {[%clk 0:00:08]}  Be6 {[%clk 0:00:10]} 44. Nf6 {[%clk 0:00:07]}  Ra1 {[%clk 0:00:10]} 45. Neg4 {[%clk 0:00:05]}  Ke7 {[%clk 0:00:10]} 46. Re3 {[%clk 0:00:05]}  Ra3 {[%clk 0:00:09]} 47. Rxa3 {[%clk 0:00:04]}  Bxa3 {[%clk 0:00:10]} 48. Ne4 {[%clk 0:00:04]}  Bb4 {[%clk 0:00:10]} 49. Ne3 {[%clk 0:00:04]}  a3 {[%clk 0:00:10]} 50. Nc2 {[%clk 0:00:05]}  a2 {[%clk 0:00:10]} 51. Ke3 {[%clk 0:00:05]}  Bb3 {[%clk 0:00:09]} 52. Na1 {[%clk 0:00:05]}  Ba4 {[%clk 0:00:09]} 53. Kd3 {[%clk 0:00:04]}  Bb5+ {[%clk 0:00:08]} 54. Kc2 {[%clk 0:00:04]}  Bc4 {[%clk 0:00:08]} 55. Nc3 {[%clk 0:00:04]}  Ba3 {[%clk 0:00:08]} 56. g3 {[%clk 0:00:04]}  Kf7 {[%clk 0:00:08]} 57. g4 {[%clk 0:00:04]}  Kg6 {[%clk 0:00:08]} 58. Nxa2 {[%clk 0:00:04]}  Bxa2 {[%clk 0:00:08]} 59. Nb3 {[%clk 0:00:05]}  Kxg5 {[%clk 0:00:08]} 60. Kc3 {[%clk 0:00:05]}  Kxg4 {[%clk 0:00:08]} 61. Kc2 {[%clk 0:00:06]}  Kf5 {[%clk 0:00:07]} 62. Kc3 {[%clk 0:00:06]}  Ke5 {[%clk 0:00:08]} 63. Kc4 {[%clk 0:00:06]}  Bb2 {[%clk 0:00:08]} 64. Kb4 {[%clk 0:00:06]}  Kd5 {[%clk 0:00:08]} 65. Na5 {[%clk 0:00:05]}  Bf6 {[%clk 0:00:08]} 66. Nb3 {[%clk 0:00:06]}  Be7+ {[%clk 0:00:08]} 67. Kc3 {[%clk 0:00:06]}  Bb1 {[%clk 0:00:08]} 68. Kb2 {[%clk 0:00:05]}  Bg6 {[%clk 0:00:09]} 69. Kc3 {[%clk 0:00:06]}  Bh7 {[%clk 0:00:09]} 70. Nd2 {[%clk 0:00:06]}  Bf6+ {[%clk 0:00:09]} 71. Kb3 {[%clk 0:00:06]}  Kd4 {[%clk 0:00:08]} 72. Kb4 {[%clk 0:00:06]}  Be7+ {[%clk 0:00:08]} 73. Kb5 {[%clk 0:00:06]}  Bd3+ {[%clk 0:00:09]} 74. Ka4 {[%clk 0:00:05]}  Kc3 {[%clk 0:00:08]} 75. Nf3 {[%clk 0:00:04]}  Bf6 {[%clk 0:00:09]} 76. Ka5 {[%clk 0:00:04]}  Be4 {[%clk 0:00:09]} 77. Ng1 {[%clk 0:00:03]}  Kd3 {[%clk 0:00:08]} 78. Nh3 {[%clk 0:00:03]}  Ke3 {[%clk 0:00:09]} 79. Ng1 {[%clk 0:00:03]}  Bf5 {[%clk 0:00:09]} 80. Kb4 {[%clk 0:00:03]}  Kf2 {[%clk 0:00:09]} 81. Nh3+ {[%clk 0:00:03]}  Bxh3 {[%clk 0:00:09]} 82. Kc4 {[%clk 0:00:03]}  Ke3 {[%clk 0:00:10]} 83. Kd5 {[%clk 0:00:04]}  Bf5 {[%clk 0:00:10]} 84. Kd6 {[%clk 0:00:05]}  Kd4 {[%clk 0:00:11]} 85. Kc7 {[%clk 0:00:05]}  Kc5 {[%clk 0:00:11]} 86. Kb7 {[%clk 0:00:05]}  Be5 {[%clk 0:00:10]} 87. Ka7 {[%clk 0:00:04]}  Kc6 {[%clk 0:00:11]} 88. Ka6 {[%clk 0:00:05]}  Bc7 {[%clk 0:00:11]} 89. Ka7 {[%clk 0:00:04]}  Bd3 {[%clk 0:00:11]} 90. Ka8 {[%clk 0:00:05]}  Bb6 {[%clk 0:00:10]} 91. Kb8 {[%clk 0:00:05]}  Bf5 {[%clk 0:00:11]} 92. Ka8 {[%clk 0:00:06]}  Bc7 {[%clk 0:00:11]} 93. Ka7 {[%clk 0:00:06]}  Kb5 {[%clk 0:00:10]} 94. Kb7 {[%clk 0:00:06]}  Bd6 {[%clk 0:00:11]} 95. Ka7 {[%clk 0:00:07]}  Be4 {[%clk 0:00:10]} 1/2-1/2


[Site "https://www.chess.com"]

[Event "Titled Tuesday Blitz June 13 Late 2023"]
[White "Rustemov, Alexander"]
[Black "Badelka, Olga"]
[WhiteFideId "4119002"]
[BlackFideId "13509926"]
[WhiteElo "2779"]
[BlackElo "2375"]
[Result "1-0"]
[Round "8"]
[TimeControl "180+2"]
[Date "2023.06.13"]
[WhiteClock "0:00:43"]
[BlackClock "0:00:00"]
[Board "46"]

1. d4 {[%clk 0:02:59]}  Nf6 {[%clk 0:02:58]} 2. Bg5 {[%clk 0:02:59]}  d5 {[%clk 0:02:56]} 3. Nd2 {[%clk 0:02:58]}  c5 {[%clk 0:02:53]} 4. e3 {[%clk 0:02:57]}  e6 {[%clk 0:02:42]} 5. c3 {[%clk 0:02:55]}  Nc6 {[%clk 0:02:41]} 6. f4 {[%clk 0:02:51]}  Be7 {[%clk 0:02:33]} 7. Bd3 {[%clk 0:02:50]}  cxd4 {[%clk 0:02:17]} 8. exd4 {[%clk 0:02:49]}  h6 {[%clk 0:02:10]} 9. Bh4 {[%clk 0:02:45]}  Qc7 {[%clk 0:02:09]} 10. Nh3 {[%clk 0:02:42]}  Bd7 {[%clk 0:01:42]} 11. O-O {[%clk 0:02:41]}  O-O-O {[%clk 0:01:37]} 12. Nf3 {[%clk 0:02:36]}  g5 {[%clk 0:01:14]} 13. fxg5 {[%clk 0:02:32]}  Ne4 {[%clk 0:01:06]} 14. g6 {[%clk 0:02:14]}  fxg6 {[%clk 0:00:46]} 15. Bxe7 {[%clk 0:02:11]}  Nxe7 {[%clk 0:00:47]} 16. Ne5 {[%clk 0:02:10]}  Rde8 {[%clk 0:00:29]} 17. Qe2 {[%clk 0:02:03]}  Nf5 {[%clk 0:00:26]} 18. Bxe4 {[%clk 0:02:01]}  dxe4 {[%clk 0:00:26]} 19. Qxe4 {[%clk 0:02:02]}  g5 {[%clk 0:00:13]} 20. Rae1 {[%clk 0:01:57]}  Rhf8 {[%clk 0:00:12]} 21. Nf2 {[%clk 0:01:41]}  Kb8 {[%clk 0:00:12]} 22. Nxd7+ {[%clk 0:01:37]}  Qxd7 {[%clk 0:00:11]} 23. Ng4 {[%clk 0:01:38]}  Nh4 {[%clk 0:00:04]} 24. Ne5 {[%clk 0:01:36]}  Qb5 {[%clk 0:00:04]} 25. Qe2 {[%clk 0:01:31]}  Qa4 {[%clk 0:00:02]} 26. g3 {[%clk 0:01:28]}  Rxf1+ {[%clk 0:00:01]} 27. Rxf1 {[%clk 0:01:28]}  Nf5 {[%clk 0:00:02]} 28. a3 {[%clk 0:01:18]}  Qb3 {[%clk 0:00:02]} 29. Rf2 {[%clk 0:01:10]}  a6 {[%clk 0:00:02]} 30. Kg2 {[%clk 0:01:04]}  Qd5+ {[%clk 0:00:02]} 31. Qf3 {[%clk 0:01:03]}  Qb3 {[%clk 0:00:02]} 32. Nd3 {[%clk 0:00:46]}  Qb6 {[%clk 0:00:01]} 33. Nc5 {[%clk 0:00:45]}  Ka7 {[%clk 0:00:00]} 34. Qe4 {[%clk 0:00:43]} 1-0


[Site "https://www.chess.com"]

[Event "Titled Tuesday Blitz June 13 Late 2023"]
[White "Djordjevic, Vuk"]
[Black "Fedotov, Nikita"]
[WhiteFideId "902098"]
[BlackFideId "24161446"]
[WhiteElo "2463"]
[BlackElo "2211"]
[Result "1-0"]
[Round "8"]
[TimeControl "180+2"]
[Date "2023.06.13"]
[WhiteClock "0:00:05"]
[BlackClock "0:00:13"]
[Board "48"]

1. d4 {[%clk 0:03:00]}  Nf6 {[%clk 0:02:46]} 2. Bg5 {[%clk 0:03:01]}  d5 {[%clk 0:02:43]} 3. Bxf6 {[%clk 0:03:01]}  gxf6 {[%clk 0:02:43]} 4. e3 {[%clk 0:03:02]}  c5 {[%clk 0:02:40]} 5. dxc5 {[%clk 0:03:02]}  e5 {[%clk 0:02:40]} 6. c4 {[%clk 0:03:01]}  dxc4 {[%clk 0:02:37]} 7. Nd2 {[%clk 0:03:00]}  c3 {[%clk 0:02:36]} 8. bxc3 {[%clk 0:03:00]}  Bxc5 {[%clk 0:02:32]} 9. Ngf3 {[%clk 0:02:55]}  Be6 {[%clk 0:02:28]} 10. Bc4 {[%clk 0:02:54]}  Nc6 {[%clk 0:02:06]} 11. Bxe6 {[%clk 0:02:53]}  fxe6 {[%clk 0:02:07]} 12. Qb3 {[%clk 0:02:53]}  Qe7 {[%clk 0:02:03]} 13. Ne4 {[%clk 0:02:44]}  Bb6 {[%clk 0:02:01]} 14. O-O {[%clk 0:02:44]}  O-O {[%clk 0:01:51]} 15. Rad1 {[%clk 0:02:36]}  Rad8 {[%clk 0:01:51]} 16. Nfd2 {[%clk 0:02:15]}  f5 {[%clk 0:01:36]} 17. Ng3 {[%clk 0:02:12]}  Na5 {[%clk 0:01:36]} 18. Qb5 {[%clk 0:02:10]}  Rd5 {[%clk 0:01:35]} 19. Qe2 {[%clk 0:02:02]}  e4 {[%clk 0:01:25]} 20. Nb3 {[%clk 0:01:02]}  Nxb3 {[%clk 0:00:56]} 21. Rxd5 {[%clk 0:00:58]}  exd5 {[%clk 0:00:57]} 22. axb3 {[%clk 0:00:58]}  f4 {[%clk 0:00:58]} 23. Qg4+ {[%clk 0:00:54]}  Kh8 {[%clk 0:00:58]} 24. exf4 {[%clk 0:00:53]}  Qf6 {[%clk 0:00:59]} 25. Qd7 {[%clk 0:00:44]}  Qxf4 {[%clk 0:00:54]} 26. Qxd5 {[%clk 0:00:44]}  e3 {[%clk 0:00:53]} 27. Qxb7 {[%clk 0:00:28]}  exf2+ {[%clk 0:00:45]} 28. Kh1 {[%clk 0:00:27]}  Rf6 {[%clk 0:00:38]} 29. Nh5 {[%clk 0:00:16]}  Rf7 {[%clk 0:00:32]} 30. Nxf4 {[%clk 0:00:02]}  Rxb7 {[%clk 0:00:32]} 31. Nd5 {[%clk 0:00:02]}  Rd7 {[%clk 0:00:21]} 32. Nxb6 {[%clk 0:00:02]}  axb6 {[%clk 0:00:22]} 33. g3 {[%clk 0:00:01]}  Rd3 {[%clk 0:00:21]} 34. Rxf2 {[%clk 0:00:02]}  Rxc3 {[%clk 0:00:22]} 35. b4 {[%clk 0:00:03]}  Rc4 {[%clk 0:00:21]} 36. Rf4 {[%clk 0:00:03]}  Rc2 {[%clk 0:00:20]} 37. Rf6 {[%clk 0:00:02]}  Rb2 {[%clk 0:00:19]} 38. Rxb6 {[%clk 0:00:02]}  Kg7 {[%clk 0:00:20]} 39. b5 {[%clk 0:00:03]}  h5 {[%clk 0:00:20]} 40. Kg1 {[%clk 0:00:03]}  Rb4 {[%clk 0:00:20]} 41. Rb7+ {[%clk 0:00:03]}  Kh8 {[%clk 0:00:17]} 42. b6 {[%clk 0:00:03]}  h4 {[%clk 0:00:17]} 43. Kg2 {[%clk 0:00:03]}  hxg3 {[%clk 0:00:16]} 44. hxg3 {[%clk 0:00:03]}  Rb2+ {[%clk 0:00:15]} 45. Kh3 {[%clk 0:00:04]}  Rb4 {[%clk 0:00:15]} 46. g4 {[%clk 0:00:04]}  Rb5 {[%clk 0:00:15]} 47. Kh4 {[%clk 0:00:05]}  Rb4 {[%clk 0:00:16]} 48. Kh5 {[%clk 0:00:04]}  Rb5+ {[%clk 0:00:16]} 49. g5 {[%clk 0:00:05]}  Rb1 {[%clk 0:00:13]} 50. Kg6 {[%clk 0:00:05]} 1-0


[Site "https://www.chess.com"]

[Event "Titled Tuesday Blitz June 13 Late 2023"]
[White "Lin, Dachey"]
[Black "Haszon, David"]
[WhiteFideId "2029650"]
[BlackFideId "733610"]
[WhiteElo "2313"]
[BlackElo "2210"]
[Result "1-0"]
[Round "8"]
[TimeControl "180+2"]
[Date "2023.06.13"]
[WhiteClock "0:00:38"]
[BlackClock "0:00:00"]
[Board "49"]

1. g4 {[%clk 0:03:00]}  c6 {[%clk 0:02:54]} 2. Bg2 {[%clk 0:03:00]}  d5 {[%clk 0:02:50]} 3. g5 {[%clk 0:03:00]}  e5 {[%clk 0:02:48]} 4. d4 {[%clk 0:03:01]}  Bd6 {[%clk 0:02:40]} 5. dxe5 {[%clk 0:02:59]}  Bxe5 {[%clk 0:02:40]} 6. Nf3 {[%clk 0:03:00]}  Bc7 {[%clk 0:02:39]} 7. Qd4 {[%clk 0:03:00]}  Kf8 {[%clk 0:02:33]} 8. Nc3 {[%clk 0:03:00]}  Ne7 {[%clk 0:02:29]} 9. e4 {[%clk 0:03:00]}  dxe4 {[%clk 0:02:25]} 10. Qxd8+ {[%clk 0:03:00]}  Bxd8 {[%clk 0:02:25]} 11. Nxe4 {[%clk 0:03:01]}  Bf5 {[%clk 0:02:20]} 12. Nd4 {[%clk 0:02:56]}  Bg6 {[%clk 0:02:17]} 13. h4 {[%clk 0:02:52]}  Nf5 {[%clk 0:02:11]} 14. Ne2 {[%clk 0:02:47]}  h5 {[%clk 0:02:02]} 15. Nf4 {[%clk 0:02:27]}  Nd7 {[%clk 0:01:50]} 16. Bd2 {[%clk 0:02:14]}  Bc7 {[%clk 0:01:42]} 17. O-O-O {[%clk 0:02:06]}  Ne5 {[%clk 0:01:30]} 18. Nc5 {[%clk 0:01:53]}  b6 {[%clk 0:01:07]} 19. Nxg6+ {[%clk 0:01:52]}  Nxg6 {[%clk 0:01:02]} 20. Bxc6 {[%clk 0:01:52]}  Rd8 {[%clk 0:00:47]} 21. Na6 {[%clk 0:01:21]}  Be5 {[%clk 0:00:41]} 22. Bb4+ {[%clk 0:01:18]}  Bd6 {[%clk 0:00:38]} 23. Rhe1 {[%clk 0:01:13]}  Nge7 {[%clk 0:00:32]} 24. Bb5 {[%clk 0:00:53]}  g6 {[%clk 0:00:26]} 25. Bc3 {[%clk 0:00:52]}  Rg8 {[%clk 0:00:20]} 26. Bf6 {[%clk 0:00:53]}  Bf4+ {[%clk 0:00:12]} 27. Kb1 {[%clk 0:00:53]}  Rxd1+ {[%clk 0:00:12]} 28. Rxd1 {[%clk 0:00:54]}  Nd6 {[%clk 0:00:10]} 29. a4 {[%clk 0:00:49]}  Nef5 {[%clk 0:00:10]} 30. Nb8 {[%clk 0:00:37]}  Nxh4 {[%clk 0:00:00]} 31. Re1 {[%clk 0:00:38]} 1-0


[Site "https://www.chess.com"]

[Event "Titled Tuesday Blitz June 13 Late 2023"]
[White "Annaberdiyev, Meylis"]
[Black "Santos Flores, Alberto"]
[WhiteFideId "14000563"]
[BlackFideId "3601234"]
[WhiteElo "2416"]
[BlackElo "2235"]
[Result "1-0"]
[Round "8"]
[TimeControl "180+2"]
[Date "2023.06.13"]
[WhiteClock "0:00:18"]
[BlackClock "0:00:07"]
[Board "52"]

1. e4 {[%clk 0:03:00]}  c5 {[%clk 0:02:59]} 2. Nf3 {[%clk 0:02:59]}  Nc6 {[%clk 0:02:59]} 3. Bb5 {[%clk 0:02:58]}  g6 {[%clk 0:02:59]} 4. O-O {[%clk 0:02:58]}  Bg7 {[%clk 0:02:59]} 5. c3 {[%clk 0:02:59]}  Nf6 {[%clk 0:03:00]} 6. Re1 {[%clk 0:02:58]}  O-O {[%clk 0:03:00]} 7. d4 {[%clk 0:02:58]}  cxd4 {[%clk 0:03:00]} 8. cxd4 {[%clk 0:02:58]}  d5 {[%clk 0:03:00]} 9. e5 {[%clk 0:02:57]}  Ne4 {[%clk 0:03:00]} 10. Bxc6 {[%clk 0:02:55]}  bxc6 {[%clk 0:03:00]} 11. Be3 {[%clk 0:02:56]}  Bg4 {[%clk 0:02:59]} 12. h3 {[%clk 0:02:50]}  Be6 {[%clk 0:02:53]} 13. Qc1 {[%clk 0:02:38]}  Qb6 {[%clk 0:02:51]} 14. Nc3 {[%clk 0:02:36]}  Nxc3 {[%clk 0:02:50]} 15. Qxc3 {[%clk 0:02:36]}  Rab8 {[%clk 0:02:48]} 16. b3 {[%clk 0:02:36]}  Bd7 {[%clk 0:02:46]} 17. Rac1 {[%clk 0:02:30]}  Rfc8 {[%clk 0:02:43]} 18. Bg5 {[%clk 0:02:27]}  e6 {[%clk 0:02:41]} 19. Be7 {[%clk 0:02:16]}  Bf8 {[%clk 0:02:33]} 20. Bxf8 {[%clk 0:02:14]}  Rxf8 {[%clk 0:02:34]} 21. Qe3 {[%clk 0:02:14]}  Kg7 {[%clk 0:02:31]} 22. Qf4 {[%clk 0:02:14]}  Qd8 {[%clk 0:02:31]} 23. Rc5 {[%clk 0:02:13]}  Qe7 {[%clk 0:02:31]} 24. Nh2 {[%clk 0:02:06]}  f6 {[%clk 0:02:25]} 25. exf6+ {[%clk 0:02:06]}  Qxf6 {[%clk 0:02:23]} 26. Qxf6+ {[%clk 0:01:36]}  Rxf6 {[%clk 0:02:24]} 27. Ng4 {[%clk 0:01:37]}  Rf4 {[%clk 0:02:24]} 28. Ne5 {[%clk 0:01:37]}  Be8 {[%clk 0:02:21]} 29. Nf3 {[%clk 0:01:31]}  Bd7 {[%clk 0:02:20]} 30. Re3 {[%clk 0:01:27]}  Rb5 {[%clk 0:02:13]} 31. Rxb5 {[%clk 0:01:22]}  cxb5 {[%clk 0:02:13]} 32. g3 {[%clk 0:01:22]}  Rf8 {[%clk 0:02:08]} 33. Ne5 {[%clk 0:01:21]}  Rd8 {[%clk 0:01:15]} 34. Rc3 {[%clk 0:01:19]}  Rc8 {[%clk 0:01:15]} 35. Rxc8 {[%clk 0:01:08]}  Bxc8 {[%clk 0:01:16]} 36. b4 {[%clk 0:01:08]}  Kf6 {[%clk 0:01:13]} 37. Kg2 {[%clk 0:01:02]}  a6 {[%clk 0:01:11]} 38. Kf3 {[%clk 0:01:02]}  Ke7 {[%clk 0:01:09]} 39. h4 {[%clk 0:01:00]}  Kf6 {[%clk 0:01:02]} 40. Kf4 {[%clk 0:01:00]}  h6 {[%clk 0:01:01]} 41. Ng4+ {[%clk 0:00:59]}  Kg7 {[%clk 0:00:57]} 42. Ke5 {[%clk 0:00:59]}  Bd7 {[%clk 0:00:49]} 43. a3 {[%clk 0:00:58]}  Bc8 {[%clk 0:00:49]} 44. f4 {[%clk 0:00:53]}  Bd7 {[%clk 0:00:46]} 45. Nf2 {[%clk 0:00:53]}  Kf7 {[%clk 0:00:45]} 46. g4 {[%clk 0:00:54]}  Ke7 {[%clk 0:00:43]} 47. Nd3 {[%clk 0:00:54]}  Bc8 {[%clk 0:00:32]} 48. Nc5 {[%clk 0:00:53]}  Kf7 {[%clk 0:00:30]} 49. g5 {[%clk 0:00:51]}  hxg5 {[%clk 0:00:30]} 50. fxg5 {[%clk 0:00:51]}  Ke7 {[%clk 0:00:30]} 51. Nd3 {[%clk 0:00:38]}  Bd7 {[%clk 0:00:30]} 52. Nc5 {[%clk 0:00:34]}  Bc8 {[%clk 0:00:30]} 53. Nb3 {[%clk 0:00:21]}  Bd7 {[%clk 0:00:30]} 54. Nc1 {[%clk 0:00:22]}  Bc8 {[%clk 0:00:29]} 55. Nd3 {[%clk 0:00:22]}  Bd7 {[%clk 0:00:29]} 56. Nf4 {[%clk 0:00:22]}  Kf7 {[%clk 0:00:28]} 57. Kd6 {[%clk 0:00:22]}  Be8 {[%clk 0:00:21]} 58. Nd3 {[%clk 0:00:22]}  Kf8 {[%clk 0:00:16]} 59. Ne5 {[%clk 0:00:22]}  Bf7 {[%clk 0:00:16]} 60. Kc7 {[%clk 0:00:19]}  Ke7 {[%clk 0:00:15]} 61. Kb6 {[%clk 0:00:19]}  Be8 {[%clk 0:00:16]} 62. Kxa6 {[%clk 0:00:19]}  Kd6 {[%clk 0:00:16]} 63. Kb6 {[%clk 0:00:19]}  Ke7 {[%clk 0:00:15]} 64. Kc7 {[%clk 0:00:19]}  Bf7 {[%clk 0:00:13]} 65. Nxf7 {[%clk 0:00:17]}  Kxf7 {[%clk 0:00:07]} 66. Kd6 {[%clk 0:00:18]} 1-0


[Site "https://www.chess.com"]

[Event "Titled Tuesday Blitz June 13 Late 2023"]
[White "Saveliev, Alexei"]
[Black "Estrada Nieto, Julian"]
[WhiteFideId "24128546"]
[BlackFideId "5101018"]
[WhiteElo "2271"]
[BlackElo "2161"]
[Result "1-0"]
[Round "8"]
[TimeControl "180+2"]
[Date "2023.06.13"]
[WhiteClock "0:00:10"]
[BlackClock "0:00:01"]
[Board "54"]

1. c4 {[%clk 0:03:00]}  e5 {[%clk 0:02:58]} 2. Nc3 {[%clk 0:03:01]}  Nf6 {[%clk 0:02:57]} 3. Nf3 {[%clk 0:03:01]}  Nc6 {[%clk 0:02:57]} 4. e3 {[%clk 0:03:02]}  Bb4 {[%clk 0:02:58]} 5. Qc2 {[%clk 0:03:02]}  Bxc3 {[%clk 0:02:58]} 6. Qxc3 {[%clk 0:03:03]}  Qe7 {[%clk 0:02:58]} 7. d4 {[%clk 0:03:03]}  Ne4 {[%clk 0:02:54]} 8. Qd3 {[%clk 0:03:03]}  exd4 {[%clk 0:02:40]} 9. Nxd4 {[%clk 0:03:04]}  O-O {[%clk 0:02:22]} 10. Be2 {[%clk 0:03:03]}  Qb4+ {[%clk 0:02:17]} 11. Kf1 {[%clk 0:02:57]}  Qe7 {[%clk 0:01:12]} 12. f3 {[%clk 0:02:18]}  f5 {[%clk 0:01:04]} 13. g3 {[%clk 0:02:09]}  d6 {[%clk 0:01:03]} 14. Kg2 {[%clk 0:02:05]}  Nc5 {[%clk 0:00:56]} 15. Qc3 {[%clk 0:02:04]}  a5 {[%clk 0:00:54]} 16. Nb5 {[%clk 0:01:56]}  Be6 {[%clk 0:00:39]} 17. b3 {[%clk 0:01:55]}  Ne5 {[%clk 0:00:25]} 18. Bb2 {[%clk 0:01:52]}  Rae8 {[%clk 0:00:17]} 19. Rad1 {[%clk 0:01:52]}  b6 {[%clk 0:00:15]} 20. Rhe1 {[%clk 0:01:52]}  Nc6 {[%clk 0:00:13]} 21. Nd4 {[%clk 0:01:43]}  Bd7 {[%clk 0:00:10]} 22. Bf1 {[%clk 0:01:43]}  Ne5 {[%clk 0:00:09]} 23. a3 {[%clk 0:01:39]}  Qf7 {[%clk 0:00:08]} 24. Kg1 {[%clk 0:01:29]}  Bc8 {[%clk 0:00:07]} 25. Bg2 {[%clk 0:01:28]}  Bb7 {[%clk 0:00:07]} 26. Ba1 {[%clk 0:01:28]}  h6 {[%clk 0:00:06]} 27. Nb5 {[%clk 0:01:18]}  Ne6 {[%clk 0:00:05]} 28. f4 {[%clk 0:01:08]}  Bxg2 {[%clk 0:00:04]} 29. Kxg2 {[%clk 0:00:58]}  Ng4 {[%clk 0:00:03]} 30. e4 {[%clk 0:00:57]}  Nc5 {[%clk 0:00:03]} 31. exf5 {[%clk 0:00:49]}  Ne4 {[%clk 0:00:03]} 32. Qd4 {[%clk 0:00:39]}  Ngf6 {[%clk 0:00:03]} 33. Nc3 {[%clk 0:00:37]}  Nc5 {[%clk 0:00:03]} 34. Rxe8 {[%clk 0:00:23]}  Rxe8 {[%clk 0:00:02]} 35. Rb1 {[%clk 0:00:18]}  Qh5 {[%clk 0:00:02]} 36. h3 {[%clk 0:00:11]}  Ncd7 {[%clk 0:00:01]} 37. Rb2 {[%clk 0:00:09]}  Re7 {[%clk 0:00:01]} 38. Rf2 {[%clk 0:00:09]}  Qf7 {[%clk 0:00:01]} 39. Bb2 {[%clk 0:00:09]}  Qe8 {[%clk 0:00:01]} 40. b4 {[%clk 0:00:09]}  axb4 {[%clk 0:00:01]} 41. axb4 {[%clk 0:00:10]}  Re3 {[%clk 0:00:01]} 42. Nd5 {[%clk 0:00:10]}  Nxd5 {[%clk 0:00:01]} 43. Qxg7# {[%clk 0:00:10]} 1-0


[Site "https://www.chess.com"]

[Event "Titled Tuesday Blitz June 13 Late 2023"]
[White "Rios Escobar, Adan"]
[Black "Sun, Rick"]
[WhiteFideId "3403645"]
[BlackFideId "30909481"]
[WhiteElo "2497"]
[BlackElo "2169"]
[Result "0-1"]
[Round "8"]
[TimeControl "180+2"]
[Date "2023.06.13"]
[WhiteClock "0:00:00"]
[BlackClock "0:00:03"]
[Board "55"]

1. d4 {[%clk 0:02:57]}  Nf6 {[%clk 0:02:59]} 2. g3 {[%clk 0:02:51]}  g6 {[%clk 0:02:59]} 3. Bg2 {[%clk 0:02:51]}  Bg7 {[%clk 0:02:57]} 4. e4 {[%clk 0:02:51]}  O-O {[%clk 0:02:57]} 5. Ne2 {[%clk 0:02:52]}  d6 {[%clk 0:02:49]} 6. O-O {[%clk 0:02:52]}  e5 {[%clk 0:02:49]} 7. Nbc3 {[%clk 0:02:52]}  Nc6 {[%clk 0:02:48]} 8. dxe5 {[%clk 0:02:53]}  Nxe5 {[%clk 0:02:44]} 9. f4 {[%clk 0:02:48]}  Ned7 {[%clk 0:02:41]} 10. Be3 {[%clk 0:02:43]}  Re8 {[%clk 0:02:39]} 11. Qd2 {[%clk 0:02:38]}  Nb6 {[%clk 0:01:54]} 12. b3 {[%clk 0:02:35]}  Bg4 {[%clk 0:01:47]} 13. Rae1 {[%clk 0:02:18]}  Qd7 {[%clk 0:01:41]} 14. a4 {[%clk 0:02:16]}  Rad8 {[%clk 0:01:21]} 15. a5 {[%clk 0:02:11]}  Nc8 {[%clk 0:01:20]} 16. a6 {[%clk 0:01:55]}  bxa6 {[%clk 0:01:18]} 17. Nd4 {[%clk 0:01:34]}  Bh3 {[%clk 0:00:48]} 18. Bxh3 {[%clk 0:01:07]}  Qxh3 {[%clk 0:00:49]} 19. Nc6 {[%clk 0:01:07]}  Rd7 {[%clk 0:00:46]} 20. Re2 {[%clk 0:00:38]}  Nxe4 {[%clk 0:00:33]} 21. Nxe4 {[%clk 0:00:31]}  Rxe4 {[%clk 0:00:34]} 22. Bxa7 {[%clk 0:00:14]}  d5 {[%clk 0:00:19]} 23. Bf2 {[%clk 0:00:08]}  Qe6 {[%clk 0:00:15]} 24. Nd4 {[%clk 0:00:03]}  Bxd4 {[%clk 0:00:14]} 25. Rxe4 {[%clk 0:00:02]}  dxe4 {[%clk 0:00:12]} 26. Bxd4 {[%clk 0:00:02]}  c5 {[%clk 0:00:13]} 27. c3 {[%clk 0:00:01]}  cxd4 {[%clk 0:00:13]} 28. cxd4 {[%clk 0:00:02]}  Qxb3 {[%clk 0:00:11]} 29. Rc1 {[%clk 0:00:02]}  Nd6 {[%clk 0:00:11]} 30. d5 {[%clk 0:00:02]}  Qd3 {[%clk 0:00:10]} 31. Qb2 {[%clk 0:00:02]}  Qxd5 {[%clk 0:00:06]} 32. Qa1 {[%clk 0:00:01]}  Qe6 {[%clk 0:00:03]} 33. Rb1 {[%clk 0:00:02]}  Rd8 {[%clk 0:00:03]} 34. Rb6 {[%clk 0:00:00]}  e3 {[%clk 0:00:03]} 0-1


[Site "https://www.chess.com"]